fUST/lending_fUST_20241229
["ID","MTS","AMOUNT","RATE_DAILY","PERIOD"]
[346977577,1735446640623,-500.0,9.313e-05,2]
[346977579,1735446640632,-500.0,9.313e-05,2]
[346977581,1735446640642,-207.38578459,9.313e-05,2]
[346977583,1735446640651,-500.93489412,9.313e-05,2]
[346977585,1735446640660,-500.0,9.313e-05,2]
[346977587,1735446640669,-501.76072055,9.313e-05,2]
[346977589,1735446640678,-500.0,9.313e-05,2]
[346977591,1735446640687,-500.0,9.313e-05,2]
[346977593,1735446640696,-501.36959985,9.313e-05,2]
[346977595,1735446640706,-500.0,9.313e-05,2]
[346977597,1735446640715,-500.65587421,9.313e-05,2]
[346977599,1735446640725,-303.47247209,9.313e-05,2]
[346977601,1735446640734,-500.0,9.313e-05,2]
[346977603,1735446640743,-500.0,9.313e-05,2]
[346977605,1735446640752,-500.0,9.313e-05,2]
[346977607,1735446640761,-500.0,9.313e-05,2]
[346977609,1735446640771,-500.0,9.313e-05,2]
[346977611,1735446640781,-500.0,9.313e-05,2]
[346977613,1735446640790,-503.75981729,9.313e-05,2]
[346977615,1735446640799,-500.0,9.313e-05,2]
[346977617,1735446640808,-500.0,9.313e-05,2]
[346977619,1735446640818,-500.0,9.313e-05,2]
[346977621,1735446640827,-500.0,9.313e-05,2]
[346977623,1735446640837,-500.0,9.313e-05,2]
[346977625,1735446640846,-498.60529947,9.313e-05,2]
[346977627,1735446640855,-500.0,9.313e-05,2]
[346977629,1735446640864,-504.07959208,9.313e-05,2]
[346977631,1735446640873,-500.0,9.313e-05,2]
[346977633,1735446640882,-462.40501728,9.313e-05,2]
[346977635,1735446640891,-500.0,9.313e-05,2]
[346977637,1735446640900,-500.0,9.313e-05,2]
[346977639,1735446640909,-501.07243846,9.313e-05,2]
[346977641,1735446640918,-500.0,9.313e-05,2]
[346977643,1735446640927,-500.0,9.313e-05,2]
[346977645,1735446640936,-500.0,9.313e-05,2]
[346977647,1735446640945,-500.0,9.313e-05,2]
[346977649,1735446640954,-500.0,9.313e-05,2]
[346977651,1735446640963,-500.0,9.313e-05,2]
[346977653,1735446640973,-500.0,9.313e-05,2]
[346977655,1735446640982,-500.0,9.313e-05,2]
[346977657,1735446640991,-500.0,9.313e-05,2]
[346977659,1735446641000,-500.0,9.313e-05,2]
[346977661,1735446641009,-500.0,9.313e-05,2]
[346977663,1735446641018,-502.21830272,9.313e-05,2]
[346977665,1735446641027,-500.0,9.313e-05,2]
[346977667,1735446641036,-500.0,9.313e-05,2]
[346977669,1735446641045,-500.0,9.313e-05,2]
[346977671,1735446641054,-500.0,9.313e-05,2]
[346977673,1735446641063,-259.11601797,9.313e-05,2]
[346977675,1735446641072,-500.0,9.313e-05,2]
[346977677,1735446641081,-500.0,9.313e-05,2]
[346977679,1735446641091,-500.64765405,9.313e-05,2]
[346977681,1735446641100,-500.0,9.313e-05,2]
[346977683,1735446641109,-519.15629202,9.313e-05,2]
[346977685,1735446641118,-506.41233474,9.313e-05,2]
[346977687,1735446641128,-500.0,9.313e-05,2]
[346977689,1735446641137,-194.64869464,9.313e-05,2]
[346977691,1735446641146,-500.0,9.313e-05,2]
[346977693,1735446641155,-500.65230632,9.313e-05,2]
[346977695,1735446641164,-500.43068066,9.313e-05,2]
[346977697,1735446641173,-500.0,9.313e-05,2]
[346977699,1735446641182,-500.0,9.313e-05,2]
[346977701,1735446641191,-538.09,9.313e-05,2]
[346977703,1735446641200,-538.09,9.313e-05,2]
[346977704,1735446641209,-500.0,9.313e-05,2]
[346977705,1735446641218,-501.39121661,9.313e-05,2]
[346977706,1735446641227,-500.0,9.313e-05,2]
[346977707,1735446641236,-500.94663321,9.313e-05,2]
[346977708,1735446641245,-501.17269265,9.313e-05,2]
[346977709,1735446641254,-500.0,9.313e-05,2]
[346977710,1735446641263,-515.69877494,9.313e-05,2]
[346977711,1735446641272,-501.58775712,9.313e-05,2]
[346977712,1735446641281,-500.0,9.313e-05,2]
[346977713,1735446641290,-500.0,9.313e-05,2]
[346977714,1735446641299,-500.0,9.313e-05,2]
[346977715,1735446641309,-500.0,9.313e-05,2]
[346977716,1735446641318,-500.0,9.313e-05,2]
[346977717,1735446641327,-500.0,9.313e-05,2]
[346977718,1735446641336,-500.0,9.313e-05,2]
[346977719,1735446641345,-500.0,9.313e-05,2]
[346977720,1735446641354,-500.0,9.313e-05,2]
[346977721,1735446641363,-500.0,9.313e-05,2]
[346977722,1735446641372,-500.0,9.313e-05,2]
[346977723,1735446641383,-500.0,9.313e-05,2]
[346977724,1735446641392,-260.71781727,9.313e-05,2]
[346977725,1735446641401,-500.0,9.313e-05,2]
[346977726,1735446641413,-500.0,9.313e-05,2]
[346977727,1735446641423,-559.30770224,9.313e-05,2]
[346977728,1735446641434,-502.19623513,9.313e-05,2]
[346977729,1735446641443,-500.0,9.313e-05,2]
[346977730,1735446641453,-500.0,9.313e-05,2]
[346977731,1735446641462,-500.0,9.313e-05,2]
[346977732,1735446641471,-500.0,9.313e-05,2]
[346977733,1735446641480,-500.0,9.313e-05,2]
[346977734,1735446641489,-500.0,9.313e-05,2]
[346977735,1735446641498,-500.0,9.313e-05,2]
[346977736,1735446641507,-2161.09435315,9.313e-05,2]
[346977737,1735446641517,-500.0,9.313e-05,2]
[346977738,1735446641526,-870.4,9.313e-05,2]
[346977739,1735446641535,-870.4,9.313e-05,2]
[346977740,1735446641544,-500.0,9.313e-05,2]
[346977741,1735446641553,-501.79686002,9.313e-05,2]
[346977742,1735446641562,-500.0,9.313e-05,2]
[346977743,1735446641572,-503.57872014,9.313e-05,2]
[346977744,1735446641581,-500.0,9.313e-05,2]
[346977745,1735446641590,-500.0,9.313e-05,2]
[346977746,1735446641598,-502.48199525,9.313e-05,2]
[346977747,1735446641608,-501.30891078,9.313e-05,2]
[346977748,1735446641618,-500.0,9.313e-05,2]
[346977749,1735446641628,-501.5223183,9.313e-05,2]
[346977750,1735446641637,-519.8,9.313e-05,2]
[346977751,1735446641646,-500.99525278,9.313e-05,2]
[346977752,1735446641655,-173.98106638,9.313e-05,2]
[346977753,1735446641665,-500.0,9.313e-05,2]
[346977754,1735446641674,-500.0,9.313e-05,2]
[346977756,1735446641684,-501.54010603,9.313e-05,2]
[346977758,1735446641693,-500.0,9.313e-05,2]
[346977760,1735446641702,-500.0,9.313e-05,2]
[346977762,1735446641711,-500.0,9.313e-05,2]
[346977764,1735446641720,-500.0,9.313e-05,2]
[346977766,1735446641729,-500.0,9.313e-05,2]
[346977768,1735446641738,-500.0,9.313e-05,2]
[346977770,1735446641748,-500.0,9.313e-05,2]
[346977772,1735446641757,-501.74618427,9.313e-05,2]
[346977774,1735446641766,-500.0,9.314e-05,2]
[346977776,1735446641775,-500.0,9.314e-05,2]
[346977778,1735446641785,-500.0,9.314e-05,2]
[346977780,1735446641794,-500.0,9.314e-05,2]
[346977782,1735446641803,-500.0,9.314e-05,2]
[346977784,1735446641812,-504.28197104,9.314e-05,2]
[346977786,1735446641821,-500.0,9.314e-05,2]
[346977788,1735446641830,-572.26508796,9.314e-05,2]
[346977790,1735446641840,-500.0,9.314e-05,2]
[346977792,1735446641849,-500.0,9.314e-05,2]
[346977794,1735446641859,-500.0,9.314e-05,2]
[346977796,1735446641868,-500.0,9.314e-05,2]
[346977798,1735446641877,-502.85813379,9.314e-05,2]
[346977800,1735446641887,-500.0,9.314e-05,2]
[346977802,1735446641897,-500.0,9.314e-05,2]
[346977804,1735446641906,-268.75052426,9.314e-05,2]
[346977806,1735446641915,-500.0,9.314e-05,2]
[346977808,1735446641924,-500.0,9.314e-05,2]
[346977810,1735446641933,-500.0,9.314e-05,2]
[346977812,1735446641943,-500.0,9.314e-05,2]
[346977814,1735446641952,-500.0,9.314e-05,2]
[346977816,1735446641961,-500.0,9.314e-05,2]
[346977818,1735446641971,-500.0,9.314e-05,2]
[346977820,1735446641980,-502.06285767,9.314e-05,2]
[346977822,1735446641989,-500.0,9.314e-05,2]
[346977824,1735446641999,-500.0,9.314e-05,2]
[346977826,1735446642008,-505.73448599,9.314e-05,2]
[346977828,1735446642018,-500.0,9.314e-05,2]
[346977830,1735446642027,-500.0,9.314e-05,2]
[346977832,1735446642037,-500.18405082,9.314e-05,2]
[346977834,1735446642047,-500.0,9.314e-05,2]
[346977836,1735446642056,-505.16975517,9.314e-05,2]
[346977838,1735446642065,-500.0,9.314e-05,2]
[346977841,1735446642076,-500.0,9.314e-05,2]
[346977843,1735446642085,-500.57898175,9.314e-05,2]
[346977845,1735446642094,-500.58924651,9.314e-05,2]
[346977847,1735446642103,-500.0,9.314e-05,2]
[346977849,1735446642113,-500.0,9.314e-05,2]
[346977851,1735446642123,-500.0,9.314e-05,2]
[346977853,1735446642131,-500.0,9.314e-05,2]
[346977855,1735446642140,-500.0,9.314e-05,2]
[346977857,1735446642150,-500.0,9.314e-05,2]
[346977859,1735446642158,-500.84057172,9.314e-05,2]
[346977861,1735446642167,-508.63563486,9.314e-05,2]
[346977863,1735446642177,-500.0,9.314e-05,2]
[346977865,1735446642185,-500.0,9.314e-05,2]
[346977867,1735446642195,-507.10987217,9.314e-05,2]
[346977868,1735446642203,-500.0,9.314e-05,2]
[346977870,1735446642213,-500.27474918,9.314e-05,2]
[346977873,1735446642222,-500.0,9.314e-05,2]
[346977874,1735446642231,-500.0,9.314e-05,2]
[346977877,1735446642240,-500.0,9.314e-05,2]
[346977879,1735446642250,-500.0,9.314e-05,2]
[346977881,1735446642260,-502.12177782,9.314e-05,2]
[346977883,1735446642270,-500.0,9.314e-05,2]
[346977885,1735446642279,-538.09,9.314e-05,2]
[346977887,1735446642288,-538.09,9.314e-05,2]
[346977889,1735446642298,-538.09,9.314e-05,2]
[346977891,1735446642307,-500.0,9.314e-05,2]
[346977893,1735446642317,-501.16852661,9.314e-05,2]
[346977895,1735446642326,-500.0,9.314e-05,2]
[346977897,1735446642335,-502.07736638,9.314e-05,2]
[346977899,1735446642344,-500.0,9.314e-05,2]
[346977901,1735446642353,-500.0,9.314e-05,2]
[346977903,1735446642362,-500.0,9.314e-05,2]
[346977905,1735446642371,-500.0,9.314e-05,2]
[346977907,1735446642383,-500.0,9.314e-05,2]
[346977909,1735446642393,-500.0,9.314e-05,2]
[346977911,1735446642403,-500.0,9.314e-05,2]
[346977913,1735446642415,-436.01292669,9.314e-05,2]
[346977915,1735446642424,-500.0,9.314e-05,2]
[346977917,1735446642433,-500.7739155,9.314e-05,2]
[346977919,1735446642442,-500.0,9.314e-05,2]
[346977921,1735446642453,-500.0,9.314e-05,2]
[346977923,1735446642462,-500.0,9.314e-05,2]
[346977925,1735446642471,-500.0,9.314e-05,2]
[346977927,1735446642481,-500.0,9.314e-05,2]
[346977929,1735446642490,-500.0,9.314e-05,2]
[346977931,1735446642500,-870.4,9.314e-05,2]
[346977934,1735446642510,-502.22535263,9.314e-05,2]
[346977936,1735446642518,-500.0,9.314e-05,2]
[346977938,1735446642527,-500.0,9.314e-05,2]
[346977939,1735446642536,-510.43520972,9.314e-05,2]
[346977941,1735446642545,-500.0,9.314e-05,2]
[346977943,1735446642555,-500.0,9.314e-05,2]
[346977946,1735446642565,-503.95531087,9.314e-05,2]
[346977948,1735446642574,-506.50723323,9.314e-05,2]
[346977950,1735446642583,-500.0,9.314e-05,2]
[346977952,1735446642593,-1453.82,9.314e-05,2]
[346977954,1735446642602,-500.0,9.314e-05,2]
[346977956,1735446642611,-500.0,9.314e-05,2]
[346977957,1735446642620,-501.33309091,9.314e-05,2]
[346977959,1735446642629,-500.0,9.315e-05,2]
[346977961,1735446642639,-501.2235022,9.315e-05,2]
[346977963,1735446642648,-500.0,9.315e-05,2]
[346977965,1735446642657,-503.0233669,9.315e-05,2]
[346977976,1735446642742,-500.0,9.315e-05,2]
[346977978,1735446642752,-500.0,9.315e-05,2]
[346977980,1735446642761,-500.0,9.315e-05,2]
[346977982,1735446642770,-500.0,9.315e-05,2]
[346977984,1735446642780,-503.49650351,9.315e-05,2]
[346977986,1735446642789,-500.7143065,9.315e-05,2]
[346977988,1735446642798,-500.0,9.315e-05,2]
[346977990,1735446642808,-500.0,9.315e-05,2]
[346977992,1735446642817,-500.0,9.315e-05,2]
[346977994,1735446642827,-500.0,9.315e-05,2]
[346977996,1735446642836,-500.0,9.315e-05,2]
[346977998,1735446642845,-500.0,9.315e-05,2]
[346978000,1735446642854,-521.87654945,9.315e-05,2]
[346978002,1735446642863,-264.7335879,9.315e-05,2]
[346978004,1735446642873,-500.0,9.315e-05,2]
[346978006,1735446642882,-500.0,9.315e-05,2]
[346978008,1735446642891,-500.0,9.315e-05,2]
[346978010,1735446642900,-500.64270133,9.315e-05,2]
[346978012,1735446642909,-501.2979488,9.315e-05,2]
[346978014,1735446642918,-500.0,9.315e-05,2]
[346978016,1735446642928,-500.0,9.315e-05,2]
[346978018,1735446642937,-502.62963828,9.315e-05,2]
[346978020,1735446642946,-502.38478756,9.315e-05,2]
[346978023,1735446642956,-500.0,9.315e-05,2]
[346978025,1735446642965,-503.40752888,9.315e-05,2]
[346978029,1735446642975,-237.60377486,9.315e-05,2]
[346978031,1735446642984,-500.0,9.315e-05,2]
[346978034,1735446642993,-500.0,9.315e-05,2]
[346978037,1735446643002,-500.0,9.315e-05,2]
[346978040,1735446643012,-500.0,9.315e-05,2]
[346978043,1735446643021,-500.0,9.315e-05,2]
[346978046,1735446643031,-503.08526418,9.563e-05,2]
[346978049,1735446643040,-500.0,9.58e-05,2]
[346978052,1735446643050,-637.54,9.58e-05,2]
[346978054,1735446643059,-500.0,9.58e-05,2]
[346978056,1735446643069,-500.0,9.58e-05,2]
[346978058,1735446643078,-500.0,9.58e-05,2]
[346978060,1735446643087,-500.0,9.58e-05,2]
[346978062,1735446643097,-500.0,9.58e-05,2]
[346978064,1735446643107,-500.0,9.582e-05,2]
[346978066,1735446643116,-500.0,9.582e-05,2]
[346978068,1735446643126,-1035.04,9.582e-05,2]
[346978071,1735446643135,-504.72192284,9.582e-05,2]
[346978073,1735446643145,-594.07,9.582e-05,2]
[346978075,1735446643154,-500.0,9.582e-05,2]
[346978077,1735446643163,-500.0,9.582e-05,2]
[346978079,1735446643173,-196.25020381,9.582e-05,2]
[346978081,1735446643182,-500.0,9.582e-05,2]
[346978083,1735446643191,-593.08,9.582e-05,2]
[346978085,1735446643200,-500.0,9.583e-05,2]
[346978087,1735446643210,-500.0,9.584e-05,2]
[346978089,1735446643219,-500.0,9.584e-05,2]
[346978091,1735446643228,-161.43484198,9.584e-05,2]
[346978093,1735446643238,-500.0,9.584e-05,2]
[346978095,1735446643247,-500.0,9.584e-05,2]
[346978097,1735446643256,-500.0,9.584e-05,2]
[346978099,1735446643266,-500.0,9.584e-05,2]
[346978101,1735446643275,-500.0,9.584e-05,2]
[346978103,1735446643285,-500.0,9.584e-05,2]
[346978105,1735446643294,-648.08458646,9.584e-05,2]
[346978107,1735446643303,-500.0,9.584e-05,2]
[346978109,1735446643312,-500.0,9.584e-05,2]
[346978111,1735446643322,-500.0,9.584e-05,2]
[346978113,1735446643331,-503.63472708,9.584e-05,2]
[346978115,1735446643340,-500.0,9.584e-05,2]
[346978117,1735446643349,-500.0,9.584e-05,2]
[346978119,1735446643359,-500.0,9.584e-05,2]
[346978121,1735446643368,-500.0,9.584e-05,2]
[346978123,1735446643377,-500.0,9.584e-05,2]
[346978125,1735446643387,-500.0,9.584e-05,2]
[346978127,1735446643396,-500.0,9.584e-05,2]
[346978129,1735446643406,-500.0,9.584e-05,2]
[346978131,1735446643415,-500.0,9.584e-05,2]
[346978133,1735446643426,-500.0,9.584e-05,2]
[346978135,1735446643437,-500.0,9.584e-05,2]
[346978137,1735446643446,-500.0,9.584e-05,2]
[346978139,1735446643455,-500.0,9.584e-05,2]
[346978141,1735446643465,-500.0,9.584e-05,2]
[346978143,1735446643474,-500.0,9.584e-05,2]
[346978145,1735446643483,-500.0,9.584e-05,2]
[346978147,1735446643492,-500.0,9.584e-05,2]
[346978149,1735446643502,-500.0,9.584e-05,2]
[346978151,1735446643511,-500.0,9.584e-05,2]
[346978153,1735446643520,-154.99,9.584e-05,2]
[346978155,1735446643530,-500.0,9.584e-05,2]
[346978157,1735446643538,-500.0,9.584e-05,2]
[346978159,1735446643549,-11324.13,9.584e-05,2]
[346978161,1735446643558,-500.0,9.584e-05,2]
[346978163,1735446643568,-552.72226233,9.584e-05,2]
[346978165,1735446643578,-500.0,9.584e-05,2]
[346978167,1735446643588,-500.0,9.584e-05,2]
[346978169,1735446643597,-500.0,9.584e-05,2]
[346978171,1735446643607,-501.64476329,9.584e-05,2]
[346978173,1735446643616,-500.0,9.584e-05,2]
[346978175,1735446643625,-500.0,9.584e-05,2]
[346978177,1735446643635,-500.0,9.584e-05,2]
[346978179,1735446643644,-500.0,9.586e-05,2]
[346978181,1735446643653,-500.0,9.586e-05,2]
[346978183,1735446643663,-500.0,9.587e-05,2]
[346978185,1735446643672,-500.0,9.587e-05,2]
[346978187,1735446643681,-500.0,9.587e-05,2]
[346978189,1735446643691,-500.0,9.587e-05,2]
[346978191,1735446643700,-500.0,9.587e-05,2]
[346978193,1735446643709,-500.0,9.587e-05,2]
[346978195,1735446643718,-500.0,9.587e-05,2]
[346978197,1735446643727,-500.0,9.587e-05,2]
[346978199,1735446643736,-500.0,9.587e-05,2]
[346978201,1735446643746,-500.0,9.587e-05,2]
[346978203,1735446643755,-500.0,9.587e-05,2]
[346978205,1735446643764,-370.98413911,9.587e-05,2]
[346978207,1735446643773,-500.0,9.587e-05,2]
[346978209,1735446643782,-500.0,9.587e-05,2]
[346978211,1735446643791,-495.0,9.587e-05,2]
[346978213,1735446643800,-500.0,9.587e-05,2]
[346978214,1735446643809,-500.0,9.587e-05,2]
[346978215,1735446643818,-487.04849648,9.587e-05,2]
[346978216,1735446643827,-500.86610411,9.587e-05,2]
[346978217,1735446643836,-502.82223287,9.587e-05,2]
[346978218,1735446643845,-511.08819743,9.587e-05,2]
[346978219,1735446643854,-504.13531925,9.587e-05,2]
[346978220,1735446643864,-273.87819711,9.587e-05,2]
[346978221,1735446643873,-500.0,9.587e-05,2]
[346978222,1735446643881,-503.0140394,9.587e-05,2]
[346978223,1735446643890,-501.5503333,9.587e-05,2]
[346978224,1735446643899,-500.0,9.587e-05,2]
[346978225,1735446643908,-500.0,9.587e-05,2]
[346978226,1735446643917,-500.0,9.587e-05,2]
[346978227,1735446643927,-502.95094852,9.587e-05,2]
[346978228,1735446643936,-501.66399504,9.587e-05,2]
[346978229,1735446643945,-500.0,9.587e-05,2]
[346978230,1735446643954,-500.0,9.587e-05,2]
[346978231,1735446643963,-500.0,9.587e-05,2]
[346978233,1735446643972,-538.09,9.587e-05,2]
[346978235,1735446643981,-538.09,9.587e-05,2]
[346978237,1735446643990,-500.0,9.587e-05,2]
[346978239,1735446643999,-500.0,9.587e-05,2]
[346978241,1735446644008,-500.0,9.587e-05,2]
[346978243,1735446644017,-501.40238604,9.587e-05,2]
[346978245,1735446644026,-500.0,9.587e-05,2]
[346978247,1735446644036,-501.65963515,9.587e-05,2]
[346978249,1735446644045,-500.0,9.587e-05,2]
[346978251,1735446644054,-494.5,9.587e-05,2]
[346978253,1735446644064,-500.0,9.587e-05,2]
[346978255,1735446644073,-500.0,9.587e-05,2]
[346978257,1735446644083,-500.0,9.587e-05,2]
[346978259,1735446644092,-502.13210088,9.587e-05,2]
[346978261,1735446644101,-502.13076604,9.587e-05,2]
[346978263,1735446644111,-502.02421527,9.587e-05,2]
[346978265,1735446644120,-870.4,9.587e-05,2]
[346978267,1735446644130,-385.78013344,9.587e-05,2]
[346978269,1735446644139,-500.0,9.587e-05,2]
[346978271,1735446644148,-500.0,9.587e-05,2]
[346978273,1735446644157,-503.23126151,9.587e-05,2]
[346978275,1735446644167,-501.93780711,9.587e-05,2]
[346978277,1735446644176,-500.0,9.587e-05,2]
[346978279,1735446644185,-266.35607537,9.587e-05,2]
[346978281,1735446644194,-500.0,9.587e-05,2]
[346978283,1735446644203,-501.66892799,9.587e-05,2]
[346978285,1735446644213,-500.0,9.587e-05,2]
[346978287,1735446644222,-500.0,9.587e-05,2]
[346978289,1735446644231,-727.39,9.587e-05,2]
[346978291,1735446644241,-500.0,9.587e-05,2]
[346978293,1735446644250,-500.0,9.587e-05,2]
[346978295,1735446644259,-500.0,9.587e-05,2]
[346978297,1735446644268,-500.0,9.588e-05,2]
[346978299,1735446644278,-500.0,9.588e-05,2]
[346978301,1735446644287,-503.23685219,9.588e-05,2]
[346978303,1735446644296,-504.55693827,9.588e-05,2]
[346978305,1735446644306,-497.1,9.588e-05,2]
[346978307,1735446644315,-503.80387486,9.588e-05,2]
[346978309,1735446644324,-503.99506813,9.588e-05,2]
[346978311,1735446644334,-502.48559827,9.588e-05,2]
[346978313,1735446644343,-500.0,9.588e-05,2]
[346978315,1735446644352,-500.0,9.588e-05,2]
[346978317,1735446644362,-500.0,9.588e-05,2]
[346978319,1735446644371,-500.0,9.588e-05,2]
[346978321,1735446644380,-500.0,9.588e-05,2]
[346978323,1735446644389,-505.75095665,9.588e-05,2]
[346978325,1735446644399,-529.08146239,9.588e-05,2]
[346978327,1735446644410,-501.72478121,9.588e-05,2]
[346978329,1735446644420,-500.0,9.588e-05,2]
[346978331,1735446644429,-500.0,9.588e-05,2]
[346978333,1735446644438,-500.0,9.588e-05,2]
[346978335,1735446644447,-500.0,9.588e-05,2]
[346978337,1735446644456,-500.0,9.588e-05,2]
[346978339,1735446644465,-500.0,9.588e-05,2]
[346978341,1735446644474,-500.0,9.588e-05,2]
[346978343,1735446644488,-500.0,9.588e-05,2]
[346978345,1735446644498,-500.0,9.588e-05,2]
[346978347,1735446644507,-500.0,9.588e-05,2]
[346978349,1735446644517,-503.03956369,9.588e-05,2]
[346978351,1735446644527,-500.0,9.588e-05,2]
[346978353,1735446644537,-500.0,9.588e-05,2]
[346978355,1735446644546,-500.0,9.588e-05,2]
[346978357,1735446644555,-538.09,9.588e-05,2]
[346978359,1735446644564,-500.0,9.588e-05,2]
[346978361,1735446644574,-500.0,9.588e-05,2]
[346978363,1735446644583,-500.0,9.588e-05,2]
[346978365,1735446644592,-500.0,9.588e-05,2]
[346978367,1735446644602,-502.28718536,9.588e-05,2]
[346978369,1735446644611,-500.0,9.588e-05,2]
[346978371,1735446644620,-500.0,9.588e-05,2]
[346978373,1735446644631,-500.0,9.588e-05,2]
[346978375,1735446644640,-1453.82,9.588e-05,2]
[346978377,1735446644649,-500.0,9.588e-05,2]
[346978379,1735446644658,-500.0,9.589e-05,2]
[346978381,1735446644668,-500.0,9.589e-05,2]
[346978383,1735446644677,-500.0,9.589e-05,2]
[346978385,1735446644686,-504.02376883,9.589e-05,2]
[346978387,1735446644695,-500.0,9.589e-05,2]
[346978389,1735446644704,-503.06838093,9.589e-05,2]
[346978391,1735446644713,-576.99697546,9.589e-05,2]
[346978393,1735446644723,-500.0,9.589e-05,2]
[346978395,1735446644732,-502.28788854,9.589e-05,2]
[346978405,1735446644816,-500.0,9.589e-05,2]
[346978407,1735446644826,-500.0,9.589e-05,2]
[346978409,1735446644835,-500.0,9.589e-05,2]
[346978411,1735446644845,-500.0,9.589e-05,2]
[346978414,1735446644855,-2161.09435311,9.724e-05,2]
[346978416,1735446644864,-500.0,9.854e-05,2]
[346978417,1735446644875,-637.54,9.854e-05,2]
[346978420,1735446644885,-237.45109104,9.854e-05,2]
[346978421,1735446644894,-500.0,9.854e-05,2]
[346978423,1735446644903,-500.0,9.854e-05,2]
[346978426,1735446644913,-500.0,9.854e-05,2]
[346978427,1735446644923,-500.0,9.856e-05,2]
[346978429,1735446644932,-500.0,9.856e-05,2]
[346978432,1735446644942,-1035.04,9.856e-05,2]
[346978434,1735446644951,-594.07,9.856e-05,2]
[346978436,1735446644961,-500.0,9.856e-05,2]
[346978437,1735446644971,-500.0,9.856e-05,2]
[346978439,1735446644980,-500.0,9.856e-05,2]
[346978441,1735446644989,-593.08,9.856e-05,2]
[346978444,1735446644999,-500.0,9.857e-05,2]
[346978445,1735446645008,-500.0,9.858e-05,2]
[346978448,1735446645018,-500.0,9.858e-05,2]
[346978450,1735446645028,-500.0,9.858e-05,2]
[346978452,1735446645037,-500.0,9.858e-05,2]
[346978454,1735446645047,-500.0,9.858e-05,2]
[346978456,1735446645056,-500.0,9.858e-05,2]
[346978458,1735446645066,-500.0,9.858e-05,2]
[346978460,1735446645075,-500.0,9.858e-05,2]
[346978462,1735446645085,-169.7,9.858e-05,2]
[346978464,1735446645094,-500.0,9.858e-05,2]
[346978466,1735446645103,-500.0,9.858e-05,2]
[346978468,1735446645113,-500.0,9.858e-05,2]
[346978470,1735446645122,-500.0,9.858e-05,2]
[346978472,1735446645132,-500.0,9.858e-05,2]
[346978474,1735446645141,-500.0,9.858e-05,2]
[346978476,1735446645151,-500.0,9.858e-05,2]
[346978478,1735446645161,-500.0,9.858e-05,2]
[346978480,1735446645170,-500.0,9.858e-05,2]
[346978482,1735446645180,-500.0,9.858e-05,2]
[346978484,1735446645189,-500.0,9.858e-05,2]
[346978486,1735446645198,-500.0,9.858e-05,2]
[346978488,1735446645208,-500.0,9.858e-05,2]
[346978490,1735446645217,-500.0,9.858e-05,2]
[346978492,1735446645226,-500.0,9.858e-05,2]
[346978494,1735446645235,-500.0,9.858e-05,2]
[346978496,1735446645244,-500.0,9.858e-05,2]
[346978498,1735446645253,-500.0,9.858e-05,2]
[346978500,1735446645263,-500.0,9.858e-05,2]
[346978502,1735446645272,-330.18,9.858e-05,2]
[346978504,1735446645282,-500.0,9.858e-05,2]
[346978506,1735446645291,-11324.13,9.858e-05,2]
[346978508,1735446645300,-500.0,9.858e-05,2]
[346978510,1735446645310,-219.27,9.858e-05,2]
[346978512,1735446645319,-500.0,9.86e-05,2]
[346978514,1735446645329,-500.0,9.86e-05,2]
[346978516,1735446645339,-500.0,9.861e-05,2]
[346978518,1735446645348,-637.88,9.861e-05,2]
[346978520,1735446645358,-610.67539326,9.861e-05,2]
[346978522,1735446645367,-500.0,9.861e-05,2]
[346978524,1735446645377,-503.81349777,9.861e-05,2]
[346978526,1735446645385,-500.0,9.861e-05,2]
[346978528,1735446645394,-500.0,9.861e-05,2]
[346978530,1735446645404,-500.0,9.861e-05,2]
[346978532,1735446645416,-538.09,9.861e-05,2]
[346978534,1735446645425,-582.48,9.861e-05,2]
[346978536,1735446645434,-165.34,9.861e-05,2]